[Event "Chessity Nationale Pupillendag 2018 - Groep F"]
[Site "Meppel, Netherlands"]
[Date "2018.06.23"]
[Round "6.6"]
[White "Grooten, Tommy"]
[Black "Song, Fred"]
[Result "1-0"]
[TimeControl "15 min + 10 sec"]
[WhiteElo "1408"]
[BlackElo "580"]

1. e4 {[%clk 00:15:19]} {[%emt 00:02:25]} e5 {[%clk 00:15:19]} {[%emt
00:00:02]} 2. Nf3 {[%clk 00:15:28]} Nc6 {[%clk 00:15:28]} {[%emt 00:00:01]} 3.
Bc4 {[%clk 00:15:37]} {[%emt 00:00:01]} h6 {[%clk 00:15:35]} {[%emt 00:00:03]}
4. d4 {[%clk 00:15:43]} {[%emt 00:00:05]} Nxd4 {[%clk 00:15:41]} {[%emt
00:00:03]} 5. Nxd4 {[%clk 00:15:50]} {[%emt 00:00:03]} exd4 {[%emt 00:00:02]} 6.
Qxd4 {[%emt 00:00:02]} Nf6 {[%clk 00:15:43]} {[%emt 00:00:04]} 7. Nc3 {[%clk
00:15:53]} {[%emt 00:00:07]} b6 {[%clk 00:15:46]} {[%emt 00:00:07]} 8. Bf4
{[%clk 00:15:51]} {[%emt 00:00:12]} Bc5 {[%clk 00:15:52]} {[%emt 00:00:03]} 9.
Qd3 {[%clk 00:15:50]} {[%emt 00:00:12]} O-O {[%clk 00:15:52]} {[%emt 00:00:10]}
10. O-O {[%clk 00:15:57]} {[%emt 00:00:03]} Bb7 {[%clk 00:15:55]} {[%emt
00:00:06]} 11. e5 {[%clk 00:15:40]} {[%emt 00:00:28]} Nh5 {[%clk 00:16:01]}
{[%emt 00:00:03]} 12. Bxh6 {[%clk 00:15:17]} {[%emt 00:00:34]} gxh6 {[%emt
00:00:04]} 13. Qg6+ {[%emt 00:00:04]} Kh8 {[%clk 00:15:52]} {[%emt 00:00:12]}
14. Qxh6 {[%clk 00:15:18]} {[%emt 00:00:09]} Kg8 {[%clk 00:15:59]} {[%emt
00:00:02]} 15. Qxh5 {[%clk 00:15:22]} {[%emt 00:00:06]} Qe7 {[%clk 00:15:57]}
{[%emt 00:00:12]} 16. Rad1 {[%clk 00:15:21]} {[%emt 00:00:11]} d6 {[%clk
00:16:05]} {[%emt 00:00:02]} 17. Rd3 {[%clk 00:15:22]} {[%emt 00:00:09]} dxe5
{[%emt 00:00:09]} 18. Rg3+ Qg5 {[%clk 00:16:12]} {[%emt 00:00:06]} 19. Rxg5+
{[%emt 00:00:17]} 1-0

[Event "Chessity Nationale Pupillendag 2018 - Groep F"]
[Site "Meppel, Netherlands"]
[Date "2018.06.23"]
[Round "7.1"]
[White "Jakhari, Ansh"]
[Black "Kazarjan, Gachatur"]
[Result "0-1"]
[TimeControl "15 min + 10 sec"]
[WhiteElo "1293"]
[BlackElo "1020"]

1. e4 {[%clk 00:15:18]} {[%emt 00:00:02]} e6 {[%clk 00:15:29]} {[%emt
00:00:01]} 2. d4 {[%clk 00:15:27]} d5 {[%clk 00:15:38]} {[%emt 00:00:01]} 3.
exd5 {[%clk 00:15:35]} {[%emt 00:00:02]} exd5 {[%clk 00:15:47]} {[%emt
00:00:01]} 4. Nf3 {[%emt 00:00:04]} Nf6 {[%emt 00:00:02]} 5. c4 c6 {[%clk
00:16:02]} {[%emt 00:00:02]} 6. Nc3 {[%clk 00:16:00]} {[%emt 00:00:01]} Bb4
{[%clk 00:16:11]} {[%emt 00:00:02]} 7. Bd2 {[%clk 00:15:57]} {[%emt 00:00:12]}
Bg4 {[%clk 00:16:06]} {[%emt 00:00:14]} 8. a3 {[%clk 00:15:51]} {[%emt
00:00:18]} Be7 {[%clk 00:16:06]} {[%emt 00:00:10]} 9. cxd5 {[%clk 00:15:54]}
{[%emt 00:00:08]} cxd5 {[%clk 00:16:14]} {[%emt 00:00:01]} 10. Be2 {[%clk
00:16:02]} {[%emt 00:00:02]} O-O {[%emt 00:00:04]} 11. O-O {[%emt 00:00:02]}
Nc6 {[%clk 00:16:23]} {[%emt 00:00:06]} 12. Re1 {[%clk 00:16:09]} {[%emt
00:00:12]} Re8 {[%clk 00:16:27]} {[%emt 00:00:06]} 13. Be3 {[%clk 00:16:10]}
{[%emt 00:00:10]} Qc7 {[%clk 00:16:14]} {[%emt 00:00:21]} 14. h3 {[%clk
00:15:48]} {[%emt 00:00:33]} Bh5 {[%clk 00:16:15]} {[%emt 00:00:09]} 15. Qd2
{[%clk 00:15:44]} {[%emt 00:00:14]} Rad8 {[%clk 00:16:07]} {[%emt 00:00:18]} 16.
Bf4 {[%clk 00:15:38]} {[%emt 00:00:16]} Bd6 {[%clk 00:16:14]} {[%emt 00:00:03]}
17. Bxd6 {[%clk 00:14:47]} {[%emt 00:01:01]} Qxd6 {[%clk 00:16:20]} {[%emt
00:00:05]} 18. Rac1 {[%clk 00:14:40]} {[%emt 00:00:17]} a6 {[%clk 00:16:24]}
{[%emt 00:00:07]} 19. Na4 {[%clk 00:14:44]} {[%emt 00:00:05]} Ne4 {[%emt
00:00:22]} 20. Qd1 {[%clk 00:14:32]} {[%emt 00:00:08]} Qg6 {[%clk 00:15:35]}
{[%emt 00:01:00]} 21. Kh1 {[%clk 00:14:19]} {[%emt 00:00:24]} Nxf2 {[%clk
00:15:30]} {[%emt 00:00:14]} 22. Kg1 {[%clk 00:14:29]} Nxd1 {[%clk 00:15:10]}
{[%emt 00:00:31]} 23. Rcxd1 {[%clk 00:14:37]} {[%emt 00:00:01]} Re3 {[%clk
00:15:03]} {[%emt 00:00:17]} 24. Kf2 {[%clk 00:14:36]} {[%emt 00:00:11]} Re6
{[%clk 00:14:49]} {[%emt 00:00:24]} 25. Bd3 {[%clk 00:14:39]} {[%emt 00:00:08]}
Qf6 {[%clk 00:14:45]} {[%emt 00:00:12]} 26. Nc5 {[%clk 00:14:44]} {[%emt
00:00:07]} Rxe1 {[%clk 00:14:50]} {[%emt 00:00:05]} 27. Rxe1 {[%clk 00:14:53]}
{[%emt 00:00:01]} Nxd4 {[%clk 00:14:52]} {[%emt 00:00:07]} 28. Nxb7 {[%clk
00:14:41]} {[%emt 00:00:21]} Rb8 {[%clk 00:14:48]} {[%emt 00:00:15]} 29. Re3
{[%clk 00:14:40]} {[%emt 00:00:11]} Nxf3 {[%clk 00:14:48]} {[%emt 00:00:10]} 30.
gxf3 {[%clk 00:14:46]} {[%emt 00:00:03]} Qxb2+ {[%clk 00:14:55]} {[%emt
00:00:05]} 31. Kg3 {[%clk 00:14:50]} {[%emt 00:00:04]} Qxb7 {[%clk 00:15:00]}
{[%emt 00:00:05]} 32. Re5 {[%clk 00:14:50]} {[%emt 00:00:10]} Qc7 {[%clk
00:15:03]} {[%emt 00:00:07]} 33. f4 {[%clk 00:14:57]} {[%emt 00:00:02]} f6
{[%clk 00:15:11]} {[%emt 00:00:03]} 34. Rxh5 {[%clk 00:14:58]} {[%emt
00:00:08]} Rb3 {[%clk 00:15:09]} {[%emt 00:00:12]} 35. Kg4 {[%clk 00:15:03]}
{[%emt 00:00:04]} Rxd3 {[%clk 00:15:15]} {[%emt 00:00:04]} 36. h4 {[%clk
00:15:08]} {[%emt 00:00:05]} g6 {[%clk 00:15:21]} {[%emt 00:00:04]} 37. Rh6
{[%clk 00:15:16]} {[%emt 00:00:02]} Qd7+ {[%clk 00:15:27]} {[%emt 00:00:05]} 38.
f5 {[%clk 00:15:24]} {[%emt 00:00:02]} Qxf5+ {[%clk 00:15:34]} {[%emt
00:00:03]} 0-1

[Event "Chessity Nationale Pupillendag 2018 - Groep F"]
[Site "Meppel, Netherlands"]
[Date "2018.06.23"]
[Round "7.3"]
[White "De Vreugt Pezo, Max"]
[Black "Madularea, David"]
[Result "0-1"]
[TimeControl "15 min + 10 sec"]
[WhiteElo "922"]
[BlackElo "961"]

1. e4 {[%clk 00:15:19]} {[%emt 00:10:19]} e5 {[%clk 00:15:19]} {[%emt
00:00:01]} 2. Nf3 {[%clk 00:15:28]} {[%emt 00:00:01]} Nf6 {[%clk 00:15:28]} 3.
Nc3 {[%clk 00:15:37]} {[%emt 00:00:01]} Nc6 {[%clk 00:15:37]} {[%emt 00:00:01]}
4. Bb5 {[%clk 00:15:46]} d6 {[%clk 00:15:45]} {[%emt 00:00:02]} 5. d3 {[%clk
00:15:55]} Bg4 {[%clk 00:15:52]} {[%emt 00:00:03]} 6. Bg5 {[%clk 00:16:02]}
{[%emt 00:00:03]} Be7 {[%clk 00:15:55]} {[%emt 00:00:08]} 7. h3 {[%clk
00:16:10]} {[%emt 00:00:01]} Bh5 {[%clk 00:16:03]} {[%emt 00:00:02]} 8. O-O
{[%clk 00:16:14]} {[%emt 00:00:06]} h6 {[%clk 00:16:08]} {[%emt 00:00:05]} 9.
Bh4 {[%clk 00:16:22]} {[%emt 00:00:02]} Nh7 {[%clk 00:16:09]} {[%emt 00:00:09]}
10. Bxe7 {[%clk 00:16:29]} {[%emt 00:00:03]} Qxe7 {[%clk 00:16:18]} {[%emt
00:00:02]} 11. Qe2 {[%clk 00:16:30]} {[%emt 00:00:07]} Ng5 {[%clk 00:16:06]}
{[%emt 00:00:23]} 12. Kh1 {[%clk 00:16:15]} {[%emt 00:00:25]} Bxf3 {[%clk
00:15:43]} {[%emt 00:00:33]} 13. gxf3 {[%clk 00:16:23]} {[%emt 00:00:02]} Nxh3
{[%clk 00:15:51]} {[%emt 00:00:01]} 14. f4 {[%clk 00:16:10]} {[%emt 00:00:23]}
Qh4 {[%clk 00:15:40]} {[%emt 00:00:22]} 15. Qe3 {[%clk 00:15:36]} {[%emt
00:00:44]} Nxf4 {[%clk 00:14:37]} {[%emt 00:01:13]} 16. Kg1 {[%clk 00:15:36]}
{[%emt 00:00:08]} Qg4+ {[%clk 00:14:45]} {[%emt 00:00:03]} 17. Qg3 {[%clk
00:15:40]} {[%emt 00:00:06]} Ne2+ {[%clk 00:14:54]} {[%emt 00:00:02]} 18. Kg2
{[%clk 00:15:41]} {[%emt 00:00:08]} Nxg3 {[%clk 00:15:02]} {[%emt 00:00:02]} 19.
fxg3 {[%clk 00:15:48]} {[%emt 00:00:02]} O-O-O {[%clk 00:14:56]} {[%emt
00:00:17]} 20. Nd5 {[%clk 00:15:49]} {[%emt 00:00:06]} Nd4 {[%clk 00:14:50]}
{[%emt 00:00:20]} 21. Bc4 {[%clk 00:15:30]} {[%emt 00:00:29]} b5 {[%clk
00:14:38]} {[%emt 00:00:21]} 22. Bb3 {[%clk 00:15:35]} {[%emt 00:00:04]} Nxb3
{[%clk 00:14:45]} {[%emt 00:00:04]} 23. axb3 {[%emt 00:00:04]} Kb7 {[%clk
00:14:49]} {[%emt 00:00:04]} 24. Rae1 {[%clk 00:15:49]} {[%emt 00:00:04]} h5
{[%clk 00:14:48]} {[%emt 00:00:12]} 25. Ne3 {[%clk 00:15:49]} {[%emt 00:00:10]}
Qg6 {[%clk 00:14:48]} {[%emt 00:00:06]} 26. Rh1 {[%clk 00:15:32]} {[%emt
00:00:30]} h4 {[%clk 00:14:51]} {[%emt 00:00:07]} 27. Nf5 {[%clk 00:15:40]}
{[%emt 00:00:02]} Qg5 {[%clk 00:14:48]} {[%emt 00:00:11]} 28. Nxh4 {[%clk
00:15:35]} {[%emt 00:00:17]} Qd2+ {[%clk 00:14:05]} {[%emt 00:00:52]} 29. Kh3
{[%clk 00:15:36]} {[%emt 00:00:11]} g5 {[%clk 00:14:11]} {[%emt 00:00:03]} 30.
Rd1 {[%clk 00:15:41]} {[%emt 00:00:06]} Qe3 {[%clk 00:14:08]} {[%emt 00:00:11]}
31. Rde1 {[%clk 00:15:50]} {[%emt 00:00:04]} Rxh4 {[%clk 00:14:03]} {[%emt
00:00:15]} 32. Kg2 {[%clk 00:15:56]} {[%emt 00:00:05]} Qd2+ {[%clk 00:14:00]}
{[%emt 00:00:12]} 33. Kf3 {[%clk 00:15:57]} {[%emt 00:00:09]} Rxh1 {[%clk
00:13:54]} {[%emt 00:00:15]} 34. Rxh1 {[%clk 00:16:05]} {[%emt 00:00:03]} Rg8
{[%clk 00:13:50]} {[%emt 00:00:12]} 35. g4 {[%clk 00:15:43]} {[%emt 00:00:34]}
Qf4+ {[%clk 00:13:57]} {[%emt 00:00:02]} 36. Kg2 {[%clk 00:15:52]} {[%emt
00:00:02]} Qxg4+ {[%clk 00:14:04]} {[%emt 00:00:02]} 37. Kf2 {[%clk 00:16:01]}
{[%emt 00:00:02]} Qf4+ {[%clk 00:14:01]} {[%emt 00:00:13]} 38. Kg2 {[%clk
00:16:08]} {[%emt 00:00:04]} g4 {[%clk 00:14:08]} {[%emt 00:00:02]} 39. Rf1
{[%clk 00:16:16]} {[%emt 00:00:02]} Qd2+ {[%clk 00:14:08]} {[%emt 00:00:12]} 40.
Rf2 {[%clk 00:16:22]} {[%emt 00:00:02]} Qe3 {[%clk 00:14:04]} {[%emt 00:00:12]}
41. Kf1 {[%clk 00:16:16]} {[%emt 00:00:18]} g3 {[%clk 00:14:05]} {[%emt
00:00:10]} 42. Re2 {[%clk 00:16:18]} {[%emt 00:00:06]} Qf3+ {[%clk 00:14:06]}
{[%emt 00:00:10]} 43. Ke1 {[%clk 00:16:08]} {[%emt 00:00:11]} Qxe2+ {[%clk
00:14:12]} {[%emt 00:00:04]} 44. Kxe2 {[%clk 00:16:25]} {[%emt 00:00:02]} g2
{[%clk 00:14:21]} {[%emt 00:00:02]} 45. Kd2 {[%clk 00:16:28]} {[%emt 00:00:06]}
g1=Q {[%clk 00:14:23]} {[%emt 00:00:07]} 46. Kc3 {[%clk 00:16:35]} {[%emt
00:00:03]} Qe1# {[%clk 00:14:24]} {[%emt 00:00:08]} 0-1

[Event "Chessity Nationale Pupillendag 2018 - Groep F"]
[Site "Meppel, Netherlands"]
[Date "2018.06.23"]
[Round "7.4"]
[White "Boonen, Arvo"]
[Black "Grooten, Tommy"]
[Result "0-1"]
[TimeControl "15 min + 10 sec"]
[WhiteElo "657"]
[BlackElo "1408"]

1. e4 {[%clk 00:15:19]} {[%emt 00:03:58]} c5 {[%clk 00:15:20]} 2. Nf3 {[%clk
00:15:27]} {[%emt 00:00:03]} e6 {[%clk 00:15:29]} 3. d4 {[%clk 00:15:35]}
{[%emt 00:00:02]} cxd4 {[%clk 00:15:38]} 4. Nxd4 {[%clk 00:15:44]} Nf6 {[%clk
00:15:47]} 5. Nc3 {[%clk 00:15:49]} {[%emt 00:00:05]} d6 {[%clk 00:15:56]}
{[%emt 00:00:02]} 6. Bc4 {[%clk 00:15:45]} {[%emt 00:00:14]} a6 {[%clk
00:16:03]} {[%emt 00:00:03]} 7. Bg5 {[%clk 00:15:48]} {[%emt 00:00:06]} Be7
{[%clk 00:16:12]} {[%emt 00:00:03]} 8. Bf4 {[%clk 00:15:42]} {[%emt 00:00:15]}
e5 {[%clk 00:16:17]} {[%emt 00:00:06]} 9. Nf5 {[%clk 00:15:06]} {[%emt
00:00:45]} Bxf5 {[%clk 00:16:13]} {[%emt 00:00:15]} 10. exf5 {[%clk 00:15:06]}
{[%emt 00:00:09]} exf4 {[%clk 00:16:20]} {[%emt 00:00:04]} 11. Qf3 {[%clk
00:15:08]} {[%emt 00:00:06]} Qc7 {[%clk 00:16:08]} {[%emt 00:00:24]} 12. Qxf4
{[%clk 00:15:09]} {[%emt 00:00:09]} O-O {[%clk 00:15:50]} {[%emt 00:00:28]} 13.
Bd3 {[%clk 00:15:01]} {[%emt 00:00:18]} Nc6 {[%clk 00:15:46]} {[%emt 00:00:14]}
14. Qg3 {[%clk 00:14:56]} {[%emt 00:00:14]} Ne5 {[%clk 00:15:49]} {[%emt
00:00:08]} 15. O-O {[%clk 00:14:43]} {[%emt 00:00:24]} Rac8 {[%clk 00:15:50]}
{[%emt 00:00:09]} 16. f4 {[%clk 00:14:40]} {[%emt 00:00:11]} Nxd3 {[%clk
00:15:57]} {[%emt 00:00:04]} 17. Qxd3 {[%clk 00:14:47]} {[%emt 00:00:03]} Qb6+
{[%clk 00:16:00]} {[%emt 00:00:08]} 18. Kh1 {[%clk 00:14:48]} {[%emt 00:00:09]}
Rfe8 {[%clk 00:15:52]} {[%emt 00:00:18]} 19. Qg3 {[%clk 00:14:42]} {[%emt
00:00:14]} Qxb2 {[%clk 00:15:29]} {[%emt 00:00:35]} 20. Ne2 {[%clk 00:14:36]}
{[%emt 00:00:16]} Rxc2 {[%clk 00:15:30]} {[%emt 00:00:09]} 21. Ng1 {[%clk
00:14:25]} {[%emt 00:00:21]} Ne4 {[%clk 00:15:24]} {[%emt 00:00:17]} 22. Qe1
{[%clk 00:13:54]} {[%emt 00:00:39]} Nf2 {[%clk 00:14:48]} {[%emt 00:00:47]} 23.
Rxf2 {[%emt 00:00:03]} Rxf2 {[%emt 00:00:02]} 24. Rc1 {[%clk 00:13:39]} {[%emt
00:00:19]} Rxg2 {[%clk 00:14:52]} {[%emt 00:00:06]} 25. Nf3 {[%clk 00:13:42]}
{[%emt 00:00:07]} Re2 {[%clk 00:14:39]} {[%emt 00:00:23]} 26. Qg1 {[%clk
00:13:27]} {[%emt 00:00:25]} Bf6 {[%clk 00:13:59]} {[%emt 00:00:50]} 27. Qxg7+
{[%clk 00:12:45]} {[%emt 00:00:51]} Bxg7 {[%clk 00:14:04]} {[%emt 00:00:06]} 28.
Ng1 {[%clk 00:12:53]} {[%emt 00:00:02]} Rxh2 {[%clk 00:14:12]} {[%emt
00:00:02]} 0-1

[Event "Chessity Nationale Pupillendag 2018 - Groep F"]
[Site "Meppel, Netherlands"]
[Date "2018.06.23"]
[Round "7.5"]
[White "Wortman, Rawi"]
[Black "Van Gaal, Hugo"]
[Result "1-0"]
[TimeControl "15 min + 10 sec"]
[WhiteElo "655"]
[BlackElo "851"]

1. e4 {[%clk 00:15:18]} e5 {[%clk 00:15:19]} {[%emt 00:00:27]} 2. Nf3 {[%clk
00:15:27]} Nc6 {[%clk 00:15:28]} {[%emt 00:00:03]} 3. Bc4 {[%clk 00:15:35]} Nf6
{[%clk 00:15:34]} {[%emt 00:00:05]} 4. Ng5 {[%clk 00:15:43]} {[%emt 00:00:03]}
Qe7 {[%clk 00:15:21]} {[%emt 00:00:17]} 5. Nxf7 {[%clk 00:15:50]} {[%emt
00:00:09]} Rg8 {[%emt 00:00:34]} 6. Nxe5 {[%clk 00:15:28]} {[%emt 00:00:03]}
Nxe5 {[%clk 00:15:29]} {[%emt 00:00:07]} 7. Bxg8 {[%emt 00:00:04]} Nxg8 {[%clk
00:15:36]} {[%emt 00:00:02]} 8. Qh5+ {[%clk 00:15:05]} {[%emt 00:00:19]} g6
{[%clk 00:15:38]} 9. Qe2 {[%clk 00:15:05]} d6 {[%clk 00:15:38]} {[%emt
00:00:50]} 10. O-O {[%emt 00:00:09]} Bg4 {[%clk 00:15:41]} {[%emt 00:00:05]} 11.
f3 {[%emt 00:00:28]} Be6 {[%clk 00:15:27]} {[%emt 00:00:20]} 12. Nc3 {[%clk
00:14:53]} Bc4 {[%clk 00:15:32]} {[%emt 00:00:13]} 13. d3 {[%emt 00:00:14]} Be6
{[%clk 00:15:29]} {[%emt 00:00:03]} 14. d4 {[%emt 00:00:21]} Nf7 {[%clk
00:15:21]} {[%emt 00:00:16]} 15. d5 {[%clk 00:14:55]} {[%emt 00:00:06]} Bd7
{[%clk 00:15:29]} {[%emt 00:00:02]} 16. Re1 {[%emt 00:00:35]} Bh6 {[%clk
00:15:11]} {[%emt 00:00:09]} 17. Bxh6 {[%clk 00:14:47]} {[%emt 00:00:14]} Ngxh6
{[%emt 00:00:20]} 18. Rad1 {[%emt 00:00:10]} Qg5 {[%emt 00:00:34]} 19. Qc4
{[%emt 00:00:06]} Bh3 {[%emt 00:00:10]} 20. g3 {[%emt 00:00:32]} Ne5 {[%emt
00:00:35]} 21. Qe2 {[%clk 00:12:58]} {[%emt 00:00:33]} O-O-O 22. f4 {[%emt
00:00:51]} Qf6 {[%emt 00:00:14]} 23. fxe5 {[%clk 00:13:04]} Qxe5 {[%emt
00:00:16]} 24. Nb5 {[%clk 00:12:58]} {[%emt 00:00:08]} Bg4 25. Qc4 {[%clk
00:12:36]} {[%emt 00:00:31]} Rd7 26. Rf1 {[%clk 00:11:53]} {[%emt 00:01:01]}
Kd8 27. Rd2 {[%emt 00:01:20]} Qg5 {[%emt 00:00:27]} 28. Rdf2 {[%clk 00:11:12]}
{[%emt 00:00:16]} Qe3 29. Kh1 {[%clk 00:10:39]} {[%emt 00:00:55]} Nf7 30. Rxf7
{[%emt 00:01:35]} Qc5 {[%emt 00:00:09]} 31. Rf8+ {[%clk 00:10:37]} {[%emt
00:00:05]} Ke7 {[%emt 00:00:05]} 32. R1f7# {[%emt 00:00:35]} 1-0

[Event "Chessity Nationale Pupillendag 2018 - Groep F"]
[Site "Meppel, Netherlands"]
[Date "2018.06.23"]
[Round "7.6"]
[White "Yalcin, Emre"]
[Black "Fallaux, Storm"]
[Result "0-1"]
[TimeControl "15 min + 10 sec"]
[WhiteElo "627"]
[BlackElo "779"]

1. e4 {[%clk 00:15:19]} e5 {[%clk 00:15:19]} 2. Nc3 {[%clk 00:15:19]} Nc6 3.
Bc4 {[%clk 00:15:19]} Bc5 {[%clk 00:15:19]} 4. Nf3 {[%clk 00:15:43]} {[%emt
00:52:30]} Nf6 {[%clk 00:15:39]} {[%emt 00:00:03]} 5. d3 {[%clk 00:15:51]}
{[%emt 00:00:01]} h6 {[%clk 00:15:48]} {[%emt 00:00:02]} 6. Be3 {[%clk
00:16:00]} {[%emt 00:00:02]} Nd4 {[%clk 00:15:53]} {[%emt 00:00:05]} 7. Nxe5
{[%clk 00:15:52]} {[%emt 00:00:17]} d6 {[%emt 00:00:12]} 8. Nf3 {[%clk
00:16:00]} Nxf3+ {[%clk 00:15:56]} {[%emt 00:00:07]} 9. Qxf3 {[%clk 00:16:07]}
{[%emt 00:00:02]} Bg4 {[%clk 00:16:04]} {[%emt 00:00:03]} 10. Qg3 {[%clk
00:16:00]} {[%emt 00:00:16]} Qe7 {[%clk 00:16:02]} {[%emt 00:00:13]} 11. f3
{[%clk 00:16:07]} {[%emt 00:00:04]} Nh5 {[%clk 00:16:03]} {[%emt 00:00:08]} 12.
Qf2 {[%clk 00:16:06]} {[%emt 00:00:10]} Be6 {[%clk 00:16:07]} {[%emt 00:00:06]}
13. Bxc5 {[%clk 00:16:10]} {[%emt 00:00:07]} dxc5 {[%clk 00:16:14]} {[%emt
00:00:03]} 14. Bb3 {[%emt 00:00:10]} O-O-O {[%clk 00:16:19]} {[%emt 00:00:03]}
15. O-O-O {[%clk 00:16:20]} {[%emt 00:00:03]} Bxb3 {[%clk 00:16:19]} {[%emt
00:00:10]} 16. cxb3 {[%clk 00:16:27]} {[%emt 00:00:03]} Nf6 {[%clk 00:16:21]}
{[%emt 00:00:07]} 17. Nb5 {[%clk 00:16:27]} {[%emt 00:00:10]} Kb8 {[%clk
00:16:25]} {[%emt 00:00:06]} 18. d4 {[%clk 00:16:32]} {[%emt 00:00:04]} cxd4
{[%clk 00:16:32]} {[%emt 00:00:05]} 19. Rxd4 {[%clk 00:16:38]} {[%emt
00:00:03]} b6 {[%clk 00:16:27]} {[%emt 00:00:17]} 20. Rxd8+ {[%clk 00:16:40]}
{[%emt 00:00:06]} Rxd8 {[%clk 00:16:34]} {[%emt 00:00:02]} 21. Rd1 {[%clk
00:16:46]} {[%emt 00:00:05]} Rxd1+ {[%clk 00:16:31]} {[%emt 00:00:13]} 22. Kxd1
{[%clk 00:16:55]} {[%emt 00:00:02]} Qd7+ {[%clk 00:16:36]} {[%emt 00:00:04]} 23.
Nd4 {[%clk 00:16:59]} {[%emt 00:00:06]} c5 {[%clk 00:16:45]} 24. Qg3+ {[%clk
00:17:01]} {[%emt 00:00:06]} Kb7 {[%clk 00:16:51]} {[%emt 00:00:05]} 25. Kc2
{[%clk 00:16:21]} {[%emt 00:00:51]} cxd4 {[%clk 00:16:55]} {[%emt 00:00:06]} 26.
Qxg7 {[%clk 00:16:26]} {[%emt 00:00:04]} d3+ {[%clk 00:17:00]} {[%emt
00:00:05]} 27. Kd2 {[%clk 00:16:33]} {[%emt 00:00:04]} Qd6 {[%clk 00:16:50]}
{[%emt 00:00:19]} 28. Qxf7+ {[%clk 00:16:36]} {[%emt 00:00:07]} Ka6 {[%clk
00:16:58]} {[%emt 00:00:04]} 29. Qc4+ {[%clk 00:16:39]} {[%emt 00:00:05]} b5
{[%clk 00:17:03]} {[%emt 00:00:06]} 30. Qxd3 {[%clk 00:16:45]} {[%emt
00:00:03]} Qxh2 {[%clk 00:17:09]} {[%emt 00:00:04]} 31. Qd6+ {[%clk 00:16:52]}
{[%emt 00:00:03]} Qxd6+ {[%clk 00:17:16]} {[%emt 00:00:04]} 32. Ke3 {[%clk
00:16:55]} {[%emt 00:00:06]} Qg3 {[%clk 00:17:17]} {[%emt 00:00:09]} 33. e5
{[%clk 00:17:02]} {[%emt 00:00:03]} Qxe5+ {[%clk 00:17:25]} {[%emt 00:00:02]}
34. Kf2 {[%clk 00:17:11]} Qxb2+ {[%clk 00:17:30]} {[%emt 00:00:06]} 35. Kg3
{[%clk 00:17:19]} {[%emt 00:00:02]} Qxa2 {[%clk 00:17:38]} {[%emt 00:00:03]} 36.
Kf4 {[%clk 00:17:27]} Qxb3 {[%clk 00:17:47]} {[%emt 00:00:02]} 37. Kf5 {[%clk
00:17:35]} {[%emt 00:00:01]} Nd7 {[%clk 00:17:52]} {[%emt 00:00:05]} 38. Kg6
{[%clk 00:17:43]} {[%emt 00:00:02]} Qc2 {[%clk 00:18:00]} {[%emt 00:00:03]} 39.
Kxh6 {[%clk 00:17:51]} {[%emt 00:00:02]} Qxg2 {[%clk 00:18:09]} {[%emt
00:00:01]} 40. f4 {[%clk 00:17:56]} {[%emt 00:00:04]} Nf8 {[%clk 00:18:15]}
{[%emt 00:00:04]} 41. Kh5 {[%clk 00:18:00]} {[%emt 00:00:06]} Ne6 {[%clk
00:18:18]} {[%emt 00:00:07]} 42. Kh6 {[%clk 00:18:04]} {[%emt 00:00:06]} b4
{[%clk 00:18:18]} {[%emt 00:00:11]} 43. Kh7 {[%emt 00:00:06]} b3 {[%emt
00:00:02]} 44. Kh8 {[%clk 00:17:55]} {[%emt 00:00:09]} b2 {[%clk 00:18:27]}
{[%emt 00:00:02]} 45. Kh7 {[%clk 00:18:03]} {[%emt 00:00:03]} b1=Q {[%clk
00:18:30]} {[%emt 00:00:07]} 46. Kh6 {[%clk 00:18:08]} {[%emt 00:00:05]} Qbh1
{[%emt 00:00:05]} 0-1